[Event "37th ECCC 2022"]
[Site "Mayrhofen"]
[Date "2022.10.06"]
[Round "4.57"]
[White "Thorn, Eric"]
[Black "Breder, Dennis"]
[Result "1/2-1/2"]
[ECO "A40"]
[WhiteElo "2351"]
[BlackElo "2450"]
[Annotator "TA"]
[PlyCount "168"]
[EventDate "2022.10.03"]
[EventType "team-tourn"]
[EventCountry "AUT"]
[SourceTitle "playchess.com"]
[Source "ChessBase"]
[SourceQuality "1"]
[TimeControl "40/5400+30:1800+30"]

{[%evp 17,168,20,26,15,10,0,16,20,17,8,19,-12,-19,-25,-21,-68,-52,-56,-69,-92,-43,-42,-28,-75,-75,-73,-74,-73,-73,-73,-76,-116,-76,-126,-97,-103,-103,-103,-103,-108,-105,-132,-126,-137,-127,-239,-237,-233,-55,-55,-55,-55,-55,-62,-67,-68,-67,-65,-73,-62,-67,-66,-54,-80,-80,-104,-81,-104,-104,-104,-104,-89,-74,-109,-67,-88,-80,-80,-51,-51,-51,-51,0,0,0,-51,-8,-8,-8,-8,-8,-254,-188,-187,-9,-9,-10,-8,0,0,0,-15,-15,-15,0,0,0,0,0,0,0,0,0,0,0,0,0,-8,-8,-8,-8,-8,-8,-24,0,0,0,0,0,0,0,0,0,0,0,0,0,0,0,0,0,0,0,0,0,0,0,0,0,0,0,0,0]} 1. d4 {[%emt 0:00:06]} e6 {[%emt 0:00:18]} 2. Nf3 {[%emt 0:01:12]} c5 {[%emt 0:00:06]} 3. e3 {[%emt 0:02:40]} Nf6 {[%emt 0:01:12]} 4. c4 {[%emt 0:01:48]} d5 {[%emt 0:04:12]} 5. cxd5 {[%emt 0:02:42]} exd5 {[%emt 0:01:36]} 6. Bb5+ {[%emt 0:00:05]} Bd7 {[%emt 0:00:16]} 7. Bxd7+ {[%emt 0:00:06]} Nbxd7 {[%emt 0:00:05]} 8. O-O {[%emt 0:06:41]} Bd6 {[%emt 0:03:16]} 9. dxc5 {[%emt 0:01:51]} Nxc5 {[%emt 0:00:04]} 10. Bd2 {[%emt 0:05:51] D30: Queen's Gambit Declined: Systems without Nc3.} O-O {[%emt 0:06:01]} 11. Bc3 {[%emt 0:03:58]} Rc8 {[%emt 0:08:56]} 12. Bxf6 {[%emt 0:11:48]} Qxf6 {[%emt 0:00:08]} (12... gxf6 13. Nc3 $16) 13. Nc3 {[%emt 0:00:02] [#]} Rfd8 $146 {[%emt 0:00:19]} ({Predecessor:} 13... Rfe8 14. Qd4 Qxd4 15. Nxd4 Nd3 16. Rab1 Be5 {½-½ (16) Matamoros Franco,C (2430)-Bricard,E (2470) Cannes 1996}) 14. Qd4 {[%emt 0:01:49]} Qxd4 {[%emt 0:02:24]} 15. exd4 {[%emt 0:03:08]} Nd3 {[%emt 0:21:51]} 16. Nxd5 {[%emt 0:00:45] [#]} (16. Rab1 $11 {should be considered.}) 16... Bxh2+ $1 $15 {[%emt 0:15:40]} 17. Kxh2 {[%emt 0:00:54]} Rxd5 {[%emt 0:00:04]} 18. b3 {[%emt 0:07:31]} g5 {[%emt 0:12:04]} (18... Rc2 $17 19. Rad1 Nf4) 19. Rad1 {[%emt 0:05:09]} Nb4 {[%emt 0:04:13]} 20. Rd2 {[%emt 0:04:32]} (20. Rc1 $11 Rxc1 21. Rxc1) 20... Nc6 $17 {[%emt 0:02:35]} 21. g4 {[%emt 0:06:05]} Rcd8 {[%emt 0:00:51][%cal Rc6d4]} 22. Rfd1 {[%emt 0:05:52]} Kg7 {[%emt 0:00:57]} 23. Kg3 {[%emt 0:04:12]} h6 {[%emt 0:01:15]} 24. Rd3 {[%emt 0:05:24]} Kg6 {[%emt 0:00:34]} 25. R3d2 {[%emt 0:01:14]} ({White should try} 25. Re3) 25... f6 {[%emt 0:03:57]} 26. Re2 {[%emt 0:04:36]} h5 {[%emt 0:01:29]} 27. gxh5+ {[%emt 0:03:54]} Kxh5 {[%emt 0:00:03]} 28. Re4 {[%emt 0:02:19]} Kg6 {[%emt 0:00:13]} 29. Kg2 {[%emt 0:05:35]} Kf5 {[%emt 0:00:29]} 30. Re3 {[%emt 0:01:30]} g4 {[%emt 0:06:26]} (30... Nxd4 $6 31. Red3 Ke4 32. Re3+ Kf5 33. Red3 $11) 31. Nh4+ {[%emt 0:00:09]} (31. Nh2 $17) 31... Kg5 $19 {[%emt 0:00:03]} 32. Kg3 {[%emt 0:02:26] [#]} Nxd4 $2 {[%emt 0:02:28]} ({Weaker is} 32... Rxd4 33. f4+ Kh5 34. Rh1 $15) ({Black should play} 32... f5 $1 $19 {[%cal Rf5f4] Strongly threatening ...f4+.} 33. f4+ Kf6) 33. f4+ $1 $15 {[%emt 0:00:19]} gxf3 $1 {[%emt 0:00:32]} 34. Rxd4 {[%emt 0:00:40][%mdl 64] Remove Defender, Decoy} Rxd4 {[%emt 0:00:05]} 35. Nxf3+ {[%emt 0:00:04]} Kf5 {[%emt 0:00:03]} 36. Nxd4+ {[%emt 0:00:18]} Rxd4 {[%emt 0:00:05][%mdl 4096] Endgame KR-KR} 37. Re7 {[%emt 0:00:40]} Rb4 {[%emt 0:00:02]} 38. Kf3 {[%emt 0:00:30]} a5 {[%emt 0:00:13]} 39. Ke3 {[%emt 0:00:41]} Rb5 {[%emt 0:00:44] ( -> ...Re5+)} 40. Kf3 {[%emt 0:00:31]} b6 {[%emt 0:00:23]} 41. Re8 {[%emt 0:06:32]} Rc5 {[%emt 0:00:40]} 42. Rb8 {[%emt 0:04:18]} Rc6 {[%emt 0:17:15]} 43. Ke3 {[%emt 0:08:07]} Rd6 {[%emt 0:00:36]} 44. Rh8 {[%emt 0:01:55][%cal Ob3b4]} Ke5 {[%emt 0:00:14]} 45. Re8+ {[%emt 0:02:00]} Re6 {[%emt 0:00:51]} 46. Rd8 {[%emt 0:00:55]} f5 {[%emt 0:00:13]} 47. Rf8 {[%emt 0:01:51]} Rh6 {[%emt 0:01:18] Threatens to win with ...Rh3+.} 48. Re8+ {[%emt 0:01:48]} Kd6 {[%emt 0:05:46]} 49. Rf8 $1 {[%emt 0:02:57]} Re6+ {[%emt 0:02:25]} (49... Rh3+ $15 50. Kd4 (50. Kf4 Rh2 $17) 50... Rh4+ 51. Ke3 Ke5 52. Re8+ Kd5) 50. Kd3 $11 {[%emt 0:01:40]} ({Much weaker is} 50. Kf4 Re2 51. Rf6+ Kc7 52. Rf7+ Kc6 53. Rf6+ Kc5 $17) 50... Ke5 {[%emt 0:00:52]} (50... Re5 $11) 51. Ke3 $15 {[%emt 0:00:05]} Rc6 {[%emt 0:02:21]} 52. Re8+ {[%emt 0:00:46]} Kd5 {[%emt 0:01:46] aiming for ...Re6+.} 53. Rf8 $1 {[%emt 0:01:30]} Rc3+ {[%emt 0:02:52]} 54. Kd2 $2 {[%emt 0:00:45]} (54. Kf4 $11) 54... Rf3 $19 {[%emt 0:00:05]} 55. Ke2 {[%emt 0:01:03]} Rf4 {[%emt 0:00:14]} (55... Ke4 $19 {White must now prevent ...Rh3.} 56. Re8+ Kf4) 56. Rf6 $1 $11 {[%emt 0:01:53]} Kc5 {[%emt 0:01:00]} 57. Ke3 {[%emt 0:00:33]} Rf1 {[%emt 0:00:38]} 58. Ke2 {[%emt 0:00:41]} Rf4 {[%emt 0:00:15]} 59. Ke3 {[%emt 0:00:03]} Re4+ {[%emt 0:00:02]} 60. Kd3 {[%emt 0:00:06]} Re5 {[%emt 0:00:30]} 61. a3 {[%emt 0:01:03]} Kb5 {[%emt 0:00:57]} (61... f4 $5 62. Rxf4 Rg5 $11) 62. Kd4 {[%emt 0:00:43]} Re4+ {[%emt 0:00:10]} 63. Kd3 {[%emt 0:00:08]} Re5 {[%emt 0:00:51]} 64. Kd4 {[%emt 0:00:04]} Rc5 {[%emt 0:00:02]} 65. Kd3 {[%emt 0:00:31]} Rd5+ {[%emt 0:00:35]} 66. Kc3 {[%emt 0:00:44]} Kc5 {[%emt 0:00:11]} 67. a4 {[%emt 0:01:00]} Re5 {[%emt 0:01:42]} 68. Kd3 {[%emt 0:00:02]} b5 {[%emt 0:00:25]} 69. axb5 {[%emt 0:00:31]} Kxb5 {[%emt 0:00:48]} 70. Kc3 $1 {[%emt 0:00:48]} Re3+ {[%emt 0:00:07]} 71. Kb2 {[%emt 0:00:38] The position is equal.} Rf3 {[%emt 0:00:05]} 72. Rf8 {[%emt 0:00:27]} f4 {[%emt 0:00:32]} 73. Ka3 $1 {[%emt 0:00:37]} Rf1 {[%emt 0:00:11]} 74. Rf5+ {[%emt 0:00:31]} Kb6 {[%emt 0:00:13]} 75. Kb2 {[%emt 0:00:35]} f3 {[%emt 0:00:07] ...f2 is the strong threat.} 76. Kc2 $1 {[%emt 0:00:25]} Kc6 {[%emt 0:02:27]} (76... f2 $5 {[%cal Rf1a1]} 77. Kd2 Rb1 78. Rxf2 Rb2+ 79. Ke1 Rxb3 $11) 77. Kd2 {[%emt 0:00:21]} f2 {[%emt 0:00:17]} 78. Ke2 {[%emt 0:00:23]} Rb1 {[%emt 0:00:06]} 79. Kxf2 {[%emt 0:00:20]} Kb6 {[%emt 0:00:11]} 80. Rf3 {[%emt 0:00:04]} Kb5 {[%emt 0:00:04]} 81. Ke2 $1 {[%emt 0:00:14]} Kb4 {[%emt 0:00:14]} 82. Kd2 {[%emt 0:00:13]} Rxb3 {[%emt 0:00:39]} 83. Rxb3+ {[%emt 0:00:12]} Kxb3 {[%emt 0:00:07]} 84. Kc1 {[%emt 0:00:04]} a4 {[%emt 0:00:01] Weighted Error Value: White=0.17 (very precise) /Black=0.17 (very precise)} 1/2-1/2

[Event "37th ECCC 2022"]
[Site "Mayrhofen"]
[Date "2022.10.06"]
[Round "4.58"]
[White "Georgiadis, Ioannis"]
[Black "Cederstam, Carl"]
[Result "1/2-1/2"]
[ECO "B13"]
[WhiteElo "2467"]
[BlackElo "2337"]
[Annotator "TA"]
[PlyCount "61"]
[EventDate "2022.10.03"]
[EventType "team-tourn"]
[EventCountry "AUT"]
[SourceTitle "playchess.com"]
[Source "ChessBase"]
[SourceQuality "1"]
[TimeControl "40/5400+30:1800+30"]

{[%evp 9,61,24,31,32,45,54,123,99,107,45,45,48,73,68,98,58,57,70,59,55,60,60,63,45,60,52,45,36,40,39,96,33,39,33,34,16,34,18,24,25,17,11,14,15,27,0,0,0,0,0,0,-7,-7,-7]} 1. e4 {[%emt 0:00:08]} c6 {[%emt 0:00:32]} 2. d4 {[%emt 0:00:44]} d5 {[%emt 0:00:10]} 3. exd5 {[%emt 0:00:10]} cxd5 {[%emt 0:00:07]} 4. Bd3 {[%emt 0:00:25]} Nc6 {[%emt 0:00:28]} 5. c3 {[%emt 0:00:10]} Qc7 {[%emt 0:01:57]} 6. Na3 {[%emt 0:00:19] B13: Caro-Kann: Exchange Variation and Panov-Botvinnik Attack.} e5 {[%emt 0:04:44]} 7. Nb5 {[%emt 0:10:01] [#]} Qe7 $146 {[%emt 0:00:13] [#]} (7... Qb8 $14) ({Predecessor:} 7... Qb8 8. dxe5 Nxe5 9. Ne2 a6 10. Nbd4 Nf6 11. Bf4 Bd6 12. Bxe5 Bxe5 13. Qd2 O-O {1-0 (36) Jakubowski,K (2475)-Gschnitzer,A (2435) Chess.com INT 2022}) 8. dxe5 $1 $16 {[%emt 0:03:29] White is better.} Nxe5 {[%emt 0:00:53]} 9. Ne2 {[%emt 0:02:49]} ({White should try} 9. Be2 $16) 9... a6 $14 {[%emt 0:02:44]} 10. Nbd4 {[%emt 0:01:28]} Nf6 {[%emt 0:01:18]} 11. O-O {[%emt 0:02:42] aiming for Re1.} g6 {[%emt 0:14:49]} 12. Re1 {[%emt 0:17:21] [#] Ng3 is the strong threat.} Nxd3 {[%emt 0:00:57]} 13. Qxd3 {[%emt 0:00:14] Black must now prevent Bg5.} Bg7 $1 {[%emt 0:03:23]} 14. Qe3 {[%emt 0:29:36]} Qxe3 {[%emt 0:02:45]} 15. Bxe3 {[%emt 0:00:22]} O-O {[%emt 0:00:55]} 16. Rad1 {[%emt 0:00:32]} Bd7 {[%emt 0:13:18]} 17. Nf4 {[%emt 0:03:07]} Rfe8 {[%emt 0:04:44]} 18. Nb3 {[%emt 0:05:13][%cal Bd4b3,Bb3c5,Bc5d3][%mdl 32] Pair of Knights!} Bc6 {[%emt 0:02:25]} 19. Bd4 {[%emt 0:00:54]} a5 {[%emt 0:02:55]} (19... Rxe1+ $14 20. Rxe1 Re8 21. Rxe8+ Nxe8) 20. f3 {[%emt 0:02:31] White is much more active.} ({Better is} 20. Rxe8+ $16 Nxe8 21. Bxg7 Kxg7 22. Nxd5) 20... a4 {[%emt 0:08:20]} 21. Nc5 {[%emt 0:01:38]} Bh6 {[%emt 0:01:18]} 22. Ncd3 {[%emt 0:05:57]} Nd7 {[%emt 0:00:24]} 23. Kf2 {[%emt 0:01:18]} f6 {[%emt 0:03:47]} 24. Be3 {[%emt 0:02:28]} Kf7 {[%emt 0:08:34]} 25. g3 {[%emt 0:02:52]} Ne5 {[%emt 0:08:45]} 26. Nxe5+ {[%emt 0:01:01]} Rxe5 {[%emt 0:00:03]} 27. Ng2 {[%emt 0:02:26]} (27. Nd3 $5 {[%cal Rd3e5]} Bxe3+ 28. Rxe3 Rxe3 29. Kxe3 $11) 27... Bf8 {[%emt 0:00:27] The position is equal.} 28. Bd4 {[%emt 0:00:21]} Rxe1 {[%emt 0:00:32]} 29. Rxe1 {[%emt 0:00:07]} Bd6 {[%emt 0:05:15]} 30. Nf4 {[%emt 0:00:39]} Bxf4 {[%emt 0:05:34]} 31. gxf4 {[%emt 0:00:06] Weighted Error Value: White=0.14 (very precise) /Black=0.10 (very precise)} 1/2-1/2

[Event "37th ECCC 2022"]
[Site "Mayrhofen"]
[Date "2022.10.06"]
[Round "4.59"]
[White "Renman, Nils-Gustaf"]
[Black "Cvitan, Ognjen"]
[Result "0-1"]
[ECO "D33"]
[WhiteElo "2329"]
[BlackElo "2446"]
[Annotator "TA"]
[PlyCount "70"]
[EventDate "2022.10.03"]
[EventType "team-tourn"]
[EventCountry "AUT"]
[SourceTitle "playchess.com"]
[Source "ChessBase"]
[SourceQuality "1"]
[TimeControl "40/5400+30:1800+30"]

{[%evp 16,70,23,45,41,54,54,43,39,60,47,64,65,61,55,39,62,57,37,40,46,17,34,10,40,36,27,27,26,-63,-63,-53,-56,-51,-28,-164,-168,-149,-52,-44,-52,-79,-23,-137,-130,-308,-307,-288,-186,-181,-7,-415,-414,-490,-469,-1640,-522]} 1. d4 {[%emt 0:00:03]} Nf6 {[%emt 0:00:36]} 2. c4 {[%emt 0:00:24]} e6 {[%emt 0:00:56]} 3. Nf3 {[%emt 0:00:05]} d5 {[%emt 0:02:21]} 4. Nc3 {[%emt 0:00:29]} c5 {[%emt 0:01:28]} 5. cxd5 {[%emt 0:00:43]} exd5 {[%emt 0:00:07]} 6. g3 {[%emt 0:01:04]} Nc6 {[%emt 0:00:42]} 7. Bg2 {[%emt 0:00:06]} cxd4 {[%emt 0:01:12]} 8. Nxd4 {[%emt 0:00:20]} Bc5 {[%emt 0:00:08]} 9. Nb3 {[%emt 0:01:06][%csl LRc5,LRd5]} Bb6 {[%emt 0:00:41] D33: Tarrasch Defence: 6 g3 sidelines.} 10. O-O {[%emt 0:00:45]} ({Much worse is} 10. Bxd5 Nb4 11. Bf3 Qxd1+ 12. Kxd1 Ng4 13. Bxg4 Bxg4 $11) 10... d4 {[%emt 0:03:00]} 11. Na4 {[%emt 0:00:13]} O-O {[%emt 0:00:18] White is slightly better.} 12. Bg5 {[%emt 0:05:15]} Re8 {[%emt 0:03:01]} 13. Re1 {[%emt 0:01:26]} h6 {[%emt 0:01:45]} 14. Bxc6 {[%emt 0:04:28] 14.Bxf6 is a critical line.} bxc6 {[%emt 0:00:43]} 15. Bxf6 {[%emt 0:02:24]} Qxf6 {[%emt 0:00:41]} 16. Nxb6 {[%emt 0:00:14]} axb6 {[%emt 0:00:07]} 17. Qxd4 {[%emt 0:00:22]} Qd8 {[%emt 0:01:22]} 18. a3 {[%emt 0:02:21]} Ba6 {[%emt 0:17:04] [#]} 19. e3 $146 {[%emt 0:07:57]} ({Predecessor:} 19. Qc3 c5 20. Rad1 Qc7 21. e4 Rad8 22. f3 Rd7 23. Rxd7 Qxd7 24. Nd2 Rd8 25. Nc4 {½-½ (78) Dardha,D (2552)-Moroni,L (2584) Montesilvano 2022}) 19... Qc7 {[%emt 0:02:37]} 20. Rad1 {[%emt 0:02:35]} c5 {[%emt 0:03:57]} 21. Qd6 {[%emt 0:09:12]} Qb7 {[%emt 0:01:04]} 22. Nd2 {[%emt 0:06:55] Prevents Qe4.} (22. Nc1 $11) 22... Rad8 $15 {[%emt 0:07:01]} 23. Qf4 {[%emt 0:00:06]} Qd7 {[%emt 0:00:31]} 24. Qf3 {[%emt 0:06:16]} Qb5 $36 {[%emt 0:04:32][%mdl 2048] Black is more active.} 25. Ne4 {[%emt 0:08:28]} (25. b4 $11 {and White is okay.}) 25... Rxd1 $1 $19 {[%emt 0:02:18]} 26. Rxd1 {[%emt 0:00:30]} Qxb2 {[%emt 0:00:11]} (26... Qc6 $1 $17 {[%cal Rc6e4]} 27. Rd5 Bb7) 27. Nd6 $15 {[%emt 0:01:52][%csl LRe8,LRf7]} Rf8 {[%emt 0:00:14] White must now prevent ...Be2.} 28. Qd5 {[%emt 0:08:53]} Be2 {[%emt 0:11:53]} ({Black should try} 28... Qxa3 $17 29. Nf5 Qa4) 29. Re1 {[%emt 0:00:37] [#]} (29. Qd2 $11 Qxd2 30. Rxd2) 29... Bg4 $1 $17 {[%emt 0:00:14]} 30. Kg2 $2 {[%emt 0:05:39]} (30. Qe4 $17 Qc3 31. Rb1) 30... Be6 $19 {[%emt 0:01:42]} (30... Qxa3 31. Rb1 $17) 31. Qd3 {[%emt 0:01:16]} Rd8 {[%emt 0:00:20] ...Qf6 is the strong threat.} 32. e4 {[%emt 0:02:00] [#]} Qe5 $2 {[%emt 0:01:22]} (32... Rd7 $1 $19 {[%cal Oc5c4] Strongly threatening ...c4!} 33. e5 c4) 33. Rd1 $2 {[%emt 0:00:37][%mdl 8192]} (33. Nxf7 $1 $11 Bh3+ 34. Kg1 Rxd3 35. Nxe5 Rxa3 36. f4) 33... c4 {[%emt 0:00:47][%cal Bc5c4,Bc4c3][%mdl 32]} 34. Qd2 {[%emt 0:01:27]} c3 {[%emt 0:00:34]} 35. f4 (35. Qc2 $142 Rxd6 36. Rxd6 Qxd6 37. Qxc3) 35... Qc5 {Weighted Error Value: White=0.73/Black=0.21 (precise)} ({Worse is} 35... cxd2 36. fxe5 Ra8 37. Rxd2 $11) (35... Qh5 $142 36. Qe1 c2) 0-1

[Event "37th ECCC 2022"]
[Site "Mayrhofen"]
[Date "2022.10.06"]
[Round "4.60"]
[White "Haag, Gregor"]
[Black "Tuomainen, Felix"]
[Result "1/2-1/2"]
[ECO "A58"]
[WhiteElo "2316"]
[BlackElo "2222"]
[Annotator "TA"]
[PlyCount "62"]
[EventDate "2022.10.03"]
[EventType "team-tourn"]
[EventCountry "AUT"]
[SourceTitle "playchess.com"]
[Source "ChessBase"]
[SourceQuality "1"]
[TimeControl "40/5400+30:1800+30"]

{[%evp 18,62,49,39,52,41,47,7,9,0,3,0,0,0,22,13,10,16,15,20,22,20,32,29,27,20,37,16,16,-54,-49,-41,-42,-69,-67,-84,-86,-137,-97,-164,-95,-102,0,-170,0,-103,0]} 1. d4 {[%emt 0:00:03]} Nf6 {[%emt 0:00:08]} 2. c4 {[%emt 0:00:07]} c5 {[%emt 0:00:07]} 3. d5 {[%emt 0:00:09]} b5 {[%emt 0:00:14]} 4. cxb5 {[%emt 0:00:22]} a6 {[%emt 0:00:10]} 5. bxa6 {[%emt 0:00:09]} g6 {[%emt 0:00:22]} 6. Nc3 {[%emt 0:00:18]} Bxa6 {[%emt 0:00:15]} 7. Nf3 {[%emt 0:01:15]} Bg7 {[%emt 0:00:22]} 8. g3 {[%emt 0:00:11]} d6 {[%emt 0:00:08]} 9. Bg2 {[%emt 0:00:07]} Nbd7 {[%emt 0:00:19]} 10. Rb1 {[%emt 0:03:32]} Nb6 {[%emt 0:02:11] A58: Benko/Volga Gambit: Lines with 5 bxa6.} 11. b3 {[%emt 0:08:43] Prevents Bc4.} Bb7 {[%emt 0:01:08][%cal Rf6d5]} 12. e4 {[%emt 0:04:11]} Ba6 $1 {[%emt 0:01:32] The position is equal.} 13. Bf1 {[%emt 0:01:53]} Bxf1 14. Kxf1 O-O {[%emt 0:01:45] [#]} 15. Kg2 $146 {[%emt 0:06:13]} ({Predecessor:} 15. Bd2 Qc8 16. Kg2 Qa6 17. Re1 Rfb8 18. Qc2 Nfd7 19. Re2 Qa3 20. Bg5 Qb4 21. Rc1 {0-1 (41) Lundin,J (2341)-Savage,B (2308) Coulsdon 2008}) 15... Ng4 {[%emt 0:17:28]} 16. Bb2 {[%emt 0:23:02]} Bxc3 {[%emt 0:02:51][%mdl 64] [#] Remove Defender} 17. Bxc3 {[%emt 0:00:09] Hoping for a4.} Rxa2 {[%emt 0:01:18]} 18. Rb2 {[%emt 0:12:18]} Rxb2 {[%emt 0:02:42]} 19. Bxb2 {[%emt 0:00:05]} Qd7 {[%emt 0:01:56]} 20. h3 {[%emt 0:10:15]} Nf6 {[%emt 0:00:36]} 21. Qd3 {[%emt 0:01:30]} Rb8 {[%emt 0:03:16]} 22. Rd1 {[%emt 0:15:37]} Qb7 {[%emt 0:03:18]} 23. e5 (23. Nd2 $11) 23... Nfxd5 $15 {[%emt 0:10:50]} 24. exd6 {[%emt 0:02:42]} exd6 {[%emt 0:00:52]} 25. Qe4 {[%emt 0:04:35]} Qc6 $1 {[%emt 0:10:12]} 26. Kg1 {[%emt 0:00:07]} Re8 {[%emt 0:00:43]} 27. Qh4 {[%emt 0:01:10]} (27. Qd3 $142) 27... f6 {[%emt 0:08:12]} (27... h5 $6 28. Qg5 Kh7 29. Nh4 $11) 28. Ra1 {[%emt 0:02:48]} (28. Bxf6 $2 Rf8 29. Be5 dxe5 $19) (28. Nd2 $17 {was worth a try.}) 28... Nd7 {[%emt 0:02:02] Pair of Knights!} (28... Qb7 $19 29. b4 (29. Bxf6 $2 Qf7 $19) 29... cxb4) 29. Qc4 $17 {[%emt 0:01:22] [#] Inhibits Re2. aiming for Ra6.} N7b6 {[%emt 0:04:06]} (29... Qb7 $17 30. Nd2 Re6) 30. Qh4 $1 $19 {[%emt 0:00:13]} Nd7 {[%emt 0:00:56]} (30... Qb7 $19 31. b4 (31. Bxf6 $2 Qf7 $19) 31... cxb4) 31. Qc4 $1 $17 {[%emt 0:00:18] Strongly threatening Ra6.} ({Much weaker is} 31. Ra7 N5b6 32. Kg2 Re4 $17) 31... N7b6 {[%emt 0:03:18] Weighted Error Value: White=0.15 (very precise) /Black=0.20 (precise)} (31... Qb7 $17 32. Nd2 Re6) 1/2-1/2

[Event "37th ECCC 2022"]
[Site "Mayrhofen"]
[Date "2022.10.06"]
[Round "4.61"]
[White "Vandenbussche, Thibaut"]
[Black "Heberla, Bartlomiej"]
[Result "1/2-1/2"]
[ECO "B30"]
[WhiteElo "2418"]
[BlackElo "2562"]
[Annotator "TA"]
[PlyCount "101"]
[EventDate "2022.10.03"]
[EventType "team-tourn"]
[EventCountry "AUT"]
[SourceTitle "playchess.com"]
[Source "ChessBase"]
[SourceQuality "1"]
[TimeControl "40/5400+30:1800+30"]

{[%evp 9,101,20,28,29,26,26,30,28,15,20,6,0,6,0,0,0,16,-7,12,8,10,-32,-32,-27,-29,-35,-32,-34,-26,-27,-25,-140,-37,-47,-46,-44,-45,-79,-74,-80,-90,-93,-84,-94,-87,-78,-66,-58,-38,-110,-104,-110,-111,-102,-106,-104,-96,-97,-50,-38,-50,-43,-51,-47,-27,-27,0,0,0,0,0,0,0,0,0,0,0,0,0,0,0,-8,-8,-8,-8,-8,-8,-8,0,0,0,0,0,0]} 1. e4 {[%emt 0:00:03]} c5 {[%emt 0:00:02]} 2. Nf3 {[%emt 0:00:07]} Nc6 {[%emt 0:00:06]} 3. Bb5 {[%emt 0:00:09]} e5 {[%emt 0:00:04]} 4. O-O {[%emt 0:01:39]} Bd6 {[%emt 0:00:02]} 5. Bc4 {[%emt 0:05:19]} Nf6 {[%emt 0:00:25] [#]} 6. d3 $146 {[%emt 0:01:09] B30: Sicilian: 2...Nc6 3 Bb5, lines without ...g6.} ({Predecessor:} 6. Re1 O-O 7. d3 Be7 8. c3 d6 9. h3 Na5 10. Bb5 a6 11. Ba4 b5 12. Bc2 Bb7 13. d4 exd4 14. cxd4 d5 15. e5 Ne4 16. Nbd2 Nxd2 17. Qxd2 c4 18. Qf4 Bc8 19. Qg3 Kh8 20. Bf4 h6 21. e6 Nc6 22. exf7 g5 23. Bc7 Qd7 24. Ne5 Bd6 25. Bxd6 {1-0 (25) Wilks,S (2071)-Finn,P (1895) London 2019}) 6... O-O {[%emt 0:02:42]} 7. Nc3 {[%emt 0:03:34]} Be7 {[%emt 0:01:41]} 8. h3 {[%emt 0:08:23] White has an edge.} d6 {[%emt 0:00:05]} 9. Bg5 {[%emt 0:05:09]} Nd7 {[%emt 0:00:49]} 10. Be3 {[%emt 0:03:26]} Nb6 {[%emt 0:01:59]} 11. Nd5 {[%emt 0:04:19]} Kh8 {[%emt 0:10:09]} 12. Nxb6 {[%emt 0:04:35]} Qxb6 {[%emt 0:05:48]} 13. Bg5 {[%emt 0:10:55]} f6 {[%emt 0:08:07]} 14. Bd2 {[%emt 0:04:23]} f5 {[%emt 0:01:11]} 15. Ng5 {[%emt 0:01:36]} Bxg5 {[%emt 0:06:47]} 16. Bxg5 {[%emt 0:00:04]} f4 {[%emt 0:00:12]} 17. Qh5 {[%emt 0:03:41]} Bd7 {[%emt 0:00:43]} 18. c3 {[%emt 0:03:08]} Be8 {[%emt 0:04:16]} 19. Qh4 {[%emt 0:01:06]} Bf7 $36 {[%emt 0:09:24][%mdl 2048] White should prevent ...Bxc4. White is under pressure.} 20. Rfd1 {[%emt 0:00:30]} (20. Rfb1 $11 {remains equal.}) 20... Rae8 {[%emt 0:05:04]} (20... Qxb2 21. Be7 $15) (20... Bxc4 $17 21. dxc4 Qxb2) 21. Bd5 {[%emt 0:07:30]} Bxd5 {[%emt 0:01:55]} 22. exd5 {[%emt 0:00:02]} Nb8 {[%emt 0:00:13]} 23. d4 {[%emt 0:06:07] [#]} Nd7 $1 {[%emt 0:00:28][%cal Rc5d4]} ({But not} 23... Qxb2 24. Be7 Rf7 25. Bxd6 exd4 26. cxd4 $16) (23... cxd4 $6 24. cxd4 exd4 25. Bxf4 $11) 24. Re1 {[%emt 0:04:28]} cxd4 {[%emt 0:16:43]} 25. cxd4 {[%emt 0:00:22]} Qxd4 {[%emt 0:00:07]} 26. Be7 {[%emt 0:03:46]} Rf7 {[%emt 0:09:45]} ({Much less strong is} 26... Qxb2 27. Bxf8 Nxf8 28. Rab1 Qxa2 29. Rxb7 Qxd5 30. Rxa7 $16) 27. Bxd6 {[%emt 0:00:19]} Qxd5 {[%emt 0:00:09]} 28. Rad1 {[%emt 0:00:41]} Qe6 {[%emt 0:00:39]} 29. Qg4 {[%emt 0:06:09] [#]} (29. f3 $15) 29... Rf5 $1 $17 {[%emt 0:03:47]} 30. Qf3 {[%emt 0:08:04]} e4 {[%emt 0:00:22]} ({Reject} 30... Qxa2 $6 31. b3 Qa6 32. g4 $11) 31. Qb3 {[%emt 0:00:06]} Qxb3 {[%emt 0:00:46]} 32. axb3 {[%emt 0:00:01][%cal Od6f4]} Nf6 {[%emt 0:00:17]} 33. Rd4 {[%emt 0:03:30]} Rd8 {[%emt 0:03:46]} (33... Kg8 $17 34. Rb4 b5) 34. Be5 {[%emt 0:01:36]} Rxd4 {[%emt 0:01:32]} 35. Bxd4 $15 {[%emt 0:00:01][%mdl 4096] Endgame KRB-KRN} Rb5 {[%emt 0:00:08]} 36. Bxa7 {[%emt 0:01:05]} b6 {[%emt 0:03:53]} 37. Rc1 {[%emt 0:00:59]} g5 {[%emt 0:00:01]} 38. Rc6 {[%emt 0:00:51][%csl LRb6,LRf6] The position is equal.} Nd5 {[%emt 0:00:05]} 39. Re6 {[%emt 0:00:31]} Ra5 {[%emt 0:00:47]} 40. Bxb6 {[%emt 0:00:31]} Ra1+ {[%emt 0:00:55]} 41. Kh2 {[%emt 0:01:45] Strongly threatening Bd4+.} Nxb6 {[%emt 0:06:37]} 42. Rxb6 $11 {[%emt 0:00:08] KR-KR} Rf1 {[%emt 0:00:05]} 43. Re6 {[%emt 0:03:19]} Rxf2 {[%emt 0:00:03] ...e3 is the strong threat.} 44. Rxe4 {[%emt 0:00:09]} Kg7 {[%emt 0:01:59]} 45. Kg1 {[%emt 0:08:32]} Rxb2 {[%emt 0:00:03]} 46. g3 {[%emt 0:00:39]} fxg3 {[%emt 0:06:36] White must now prevent ...h5.} 47. Re3 {[%emt 0:00:48]} g2 {[%emt 0:02:49]} 48. Rg3 {[%emt 0:01:27]} Kh6 {[%emt 0:00:29]} 49. h4 {[%emt 0:00:52]} gxh4 {[%emt 0:00:11]} 50. Rxg2 {[%emt 0:00:06]} Rxb3 {[%emt 0:00:04]} 51. Kh2 {[%emt 0:00:51] Weighted Error Value: White=0.11 (very precise) /Black=0.07 (flawless)} 1/2-1/2